bitfinex/quotes_SOLUSD_20241117
["timestamp","ask_amount","ask_price","bid_price","bid_amount"]
[1731885187635,26.95898963,234.63,234.56,26.95898963]
[1731885187836,26.95898963,234.63,234.55,4.2634]
[1731885188153,26.95898963,234.61,234.55,4.2634]
[1731885188458,23.776884,234.62,234.55,4.2634]
[1731885188635,26.95898963,234.61,234.55,14.9221]
[1731885188839,23.776884,234.55,234.49,0.4630574]
[1731885189145,26.95898963,234.5,234.49,0.4630574]
[1731885189956,50.73587363,234.5,234.49,0.4630574]
[1731885190543,70.73587363,234.5,234.49,0.4630574]
[1731885190882,75.00017363,234.5,234.49,0.4630574]
[1731885191234,75.09384825,234.5,234.49,0.4630574]
[1731885191665,102.17832788,234.5,234.49,0.4630574]
[1731885191963,75.00017363,234.5,234.49,0.4630574]
[1731885192355,21.311,234.62,234.49,0.4630574]
[1731885192356,6.6409,234.6,234.49,0.4630574]
[1731885192542,26.95898963,234.55,234.49,0.4630574]
[1731885192738,26.95898963,234.59,234.5,26.95898963]
[1731885192960,22.89040091,234.67,234.54,26.95898963]
[1731885192961,26.95898963,234.61,234.54,26.95898963]
[1731885193241,6.6409,234.69,234.53,0.25098]
[1731885193242,26.95898963,234.69,234.6,26.95898963]
[1731885193460,26.95898963,234.65,234.57,0.25098]
[1731885193642,26.95898963,234.65,234.58,26.95898963]
[1731885193840,26.95898963,234.65,234.57,0.25098]
[1731885194352,26.95898963,234.65,234.58,41.87918963]
[1731885194551,26.95898963,234.63,234.58,14.9202]
[1731885194731,26.95898963,234.65,234.58,14.9202]
[1731885194938,26.95898963,234.65,234.58,41.87918963]
[1731885195757,26.95898963,234.67,234.58,41.87918963]
[1731885195933,26.95898963,234.69,234.61,26.95898963]
[1731885196134,26.95898963,234.73,234.65,26.95898963]
[1731885196335,26.95898963,234.77,234.67,26.95898963]
[1731885196549,26.95898963,234.73,234.66,14.9151]
[1731885196736,26.95898963,234.69,234.61,37.61488963]
[1731885196934,26.95898963,234.69,234.61,41.87718963]
[1731885197165,26.95898963,234.67,234.61,14.9182]
[1731885197539,26.95898963,234.69,234.61,41.87718963]
[1731885197868,26.95898963,234.63,234.55,14.9218]
[1731885198034,0.09367462,234.68,234.55,14.9218]
[1731885198240,26.95898963,234.58,234.52,4.264]
[1731885198454,26.95898963,234.55,234.49,11.1243574]
[1731885198762,26.95898963,234.59,234.51,26.95898963]
[1731885199833,10.77789,234.69,234.5,14.9252]
[1731885199834,26.95898963,234.63,234.55,26.95898963]
[1731885200039,26.95898963,234.65,234.58,0.12549]
[1731885200252,26.95898963,234.67,234.59,26.95898963]
[1731885201451,26.95898963,234.65,234.55,26.95898963]
[1731885201846,26.95898963,234.65,234.57,26.95898963]
[1731885202765,26.95898963,234.59,234.5,4.2643]
[1731885202942,26.95898963,234.59,234.51,26.95898963]
[1731885203454,20.0,234.58,234.51,26.95898963]
[1731885203648,26.95898963,234.59,234.51,26.95898963]
[1731885203863,23.776884,234.64,234.55,26.95898963]
[1731885204165,23.776884,234.64,234.51,0.09367462]
[1731885204166,23.776884,234.64,234.57,26.95898963]
[1731885204544,26.95898963,234.71,234.63,26.95898963]
[1731885204847,26.95898963,234.67,234.59,26.95898963]
[1731885205041,26.95898963,234.67,234.61,26.95898963]
[1731885205240,26.95898963,234.71,234.63,26.95898963]
[1731885206266,26.95898963,234.71,234.63,31.22098963]
[1731885206745,0.1,234.78,234.63,31.22098963]
[1731885206746,6.601,234.82,234.69,26.95898963]
[1731885207070,26.95898963,234.74,234.65,26.95898963]
[1731885207742,26.95898963,234.7,234.63,14.917]
[1731885207976,26.95898963,234.7,234.62,26.95898963]
[1731885208144,20.0,234.67,234.59,4.2626]
[1731885208475,26.95898963,234.73,234.64,26.95898963]
[1731885208773,26.95898963,234.73,234.66,26.95898963]
[1731885208946,20.0,234.72,234.66,26.95898963]
[1731885209458,26.95898963,234.71,234.64,26.95898963]
[1731885209767,23.776884,234.7,234.62,31.22108963]
[1731885210654,26.95898963,234.67,234.6,26.95898963]
[1731885210839,26.95898963,234.64,234.56,31.22218963]
[1731885211248,26.95898963,234.68,234.6,26.95898963]
[1731885211450,213.03587363,234.7,234.6,26.95898963]
[1731885211741,20.0,234.69,234.62,26.95898963]
[1731885211942,26.95898963,234.76,234.68,26.95898963]
[1731885212270,26.95898963,234.74,234.66,26.95898963]
[1731885212981,4.2591,234.79,234.62,0.12549]
[1731885212982,26.95898963,234.78,234.68,41.87278963]
[1731885213158,26.95898963,234.76,234.68,41.87278963]
[1731885213557,26.95898963,234.74,234.66,26.95898963]
[1731885214244,26.95898963,234.76,234.66,26.95898963]
[1731885214445,0.09367462,234.78,234.64,37.61358963]
[1731885214446,26.95898963,234.71,234.64,37.61358963]
[1731885214650,26.95898963,234.71,234.64,10.6546]
[1731885215056,26.95898963,234.73,234.66,26.95898963]
[1731885215265,20.0,234.72,234.66,26.95898963]
[1731885215450,20.0,234.72,234.64,37.61358963]
[1731885215653,26.95898963,234.67,234.59,10.6566]
[1731885215874,26.95898963,234.63,234.56,26.95898963]
[1731885216452,20.0,234.6,234.54,10.659]
[1731885216755,20.0,234.6,234.54,14.9226]
[1731885217253,20.0,234.6,234.54,10.659]
[1731885217654,20.0,234.54,234.49,0.4630574]
[1731885217850,20.0,234.52,234.49,0.4630574]
[1731885218251,20.0,234.5,234.49,0.4630574]
[1731885218550,43.776884,234.5,234.49,0.4630574]
[1731885219478,48.041184,234.5,234.49,0.4630574]
[1731885219652,48.23485862,234.5,234.49,0.4630574]
[1731885219855,48.13485862,234.5,234.49,0.4630574]
[1731885221262,48.38583862,234.5,234.49,0.4630574]
[1731885221568,48.48583862,234.5,234.49,0.4630574]
[1731885222155,23.99604862,234.49,234.37,10.6665]
[1731885222359,26.95898963,234.44,234.37,10.6665]
[1731885222577,23.776884,234.43,234.37,10.6665]
[1731885222920,26.95898963,234.46,234.37,37.62548963]
[1731885223176,43.776884,234.47,234.39,26.95898963]
[1731885223376,37.46728963,234.52,234.43,26.95898963]
[1731885223591,26.95898963,234.48,234.39,26.95898963]
[1731885223885,26.95898963,234.5,234.41,26.95898963]
[1731885224276,31.22308963,234.52,234.45,26.95898963]
[1731885224461,26.95898963,234.54,234.45,26.95898963]
[1731885224780,26.95898963,234.52,234.43,26.95898963]
[1731885225373,26.95898963,234.54,234.45,26.95898963]
[1731885225678,26.95898963,234.5,234.42,14.9301]
[1731885225882,6.35276506,234.76,234.48,53.91797926]
[1731885226081,25.41106025,234.82,234.48,53.91797926]
[1731885226082,26.95898963,234.81,234.71,26.95898963]
[1731885226375,26.95898963,234.74,234.65,26.95898963]
[1731885226562,31.21898963,234.74,234.65,26.95898963]
[1731885226759,4.26,234.74,234.65,26.95898963]
[1731885227471,23.776884,234.73,234.65,26.95898963]
[1731885227679,193.51868963,234.76,234.67,26.95898963]
[1731885227889,166.5597,234.76,234.67,26.95898963]
[1731885228262,26.95898963,234.73,234.61,14.9182]
[1731885228467,26.95898963,234.73,234.64,26.95898963]
[1731885228873,26.95898963,234.75,234.66,26.95898963]
[1731885229077,4.2598,234.75,234.68,26.95898963]
[1731885229676,31.21878963,234.75,234.66,26.95898963]
[1731885230070,43.776884,234.74,234.68,26.95898963]
[1731885230292,162.3,234.76,234.7,26.95898963]
[1731885230588,4.2594,234.78,234.72,26.95898963]
[1731885230894,31.21788963,234.81,234.72,26.95898963]
[1731885232074,4.2584,234.83,234.76,26.95898963]
[1731885232588,4.2584,234.83,234.72,4.2603]
[1731885232589,10.5015,234.9,234.82,26.95898963]
[1731885232793,6.2442,234.9,234.85,26.95898963]
[1731885233780,26.95898963,235.0,234.88,26.95898963]
[1731885234082,4.2558,234.97,234.89,26.95898963]
[1731885234285,26.95898963,234.98,234.91,26.95898963]
[1731885234586,162.3,234.99,234.84,26.95898963]
[1731885234587,162.3,234.99,234.93,26.95898963]
[1731885234755,26.95898963,235.0,234.93,26.95898963]
[1731885234959,31.21438963,235.0,234.93,26.95898963]
[1731885235766,4.2554,235.0,234.93,26.95898963]
[1731885235978,23.776884,234.99,234.93,26.95898963]
[1731885236187,20.0,234.98,234.93,26.95898963]
[1731885236487,20.0,234.96,234.93,26.95898963]
[1731885236686,20.0,234.96,234.91,26.95898963]
[1731885238173,50.73587363,234.95,234.77,0.45098]
[1731885238494,20.0,234.92,234.86,26.95898963]
[1731885239696,43.776884,234.86,234.75,10.6495]
[1731885239895,43.776884,234.86,234.78,26.95898963]
[1731885240191,23.776884,234.86,234.8,26.95898963]
[1731885240486,23.776884,234.84,234.78,26.95898963]
[1731885241087,23.776884,234.82,234.78,26.95898963]
[1731885241498,23.776884,234.84,234.78,26.95898963]
[1731885242288,20.0,234.89,234.82,26.95898963]
[1731885242475,20.0,234.85,234.7,0.12549]
[1731885242678,26.95898963,234.83,234.76,26.95898963]
[1731885243396,43.776884,234.84,234.76,26.95898963]
[1731885243977,20.0,234.82,234.76,26.95898963]
[1731885244289,20.0,234.82,234.74,37.60898963]
[1731885244666,23.776884,234.84,234.78,26.95898963]
[1731885245073,26.95898963,234.91,234.82,26.95898963]
[1731885245293,4.2568,234.92,234.85,26.95898963]
[1731885245794,26.95898963,234.91,234.83,26.95898963]
[1731885246197,26.95898963,234.89,234.79,26.95898963]
[1731885246392,26.95898963,234.89,234.81,26.95898963]
[1731885246902,26.95898963,234.87,234.79,26.95898963]
[1731885247067,23.776884,234.86,234.79,26.95898963]
[1731885247383,23.776884,234.88,234.81,26.95898963]
[1731885247568,23.776884,234.86,234.81,26.95898963]
[1731885247869,6.5071,234.9,234.83,26.95898963]
[1731885248068,23.776884,234.89,234.83,26.95898963]
[1731885248873,31.21558963,234.93,234.85,26.95898963]
[1731885249075,26.95898963,235.0,234.91,26.95898963]
[1731885249290,6.5815,235.04,234.99,26.95898963]
[1731885250994,26.95898963,235.08,235.0,0.12549]
[1731885251174,4.2533,235.12,235.05,26.95898963]
[1731885251570,26.95898963,235.1,235.01,26.95898963]
[1731885251769,4.254,235.08,235.01,26.95898963]
[1731885252082,26.95898963,235.05,234.97,26.95898963]
[1731885252291,26.95898963,235.03,234.95,26.95898963]
[1731885252576,26.95898963,235.03,234.85,0.1]
[1731885252577,23.776884,235.06,234.97,26.95898963]
[1731885252782,23.776884,235.06,234.99,26.95898963]
[1731885253002,23.776884,235.06,234.99,31.21438963]
[1731885253299,0.4630574,235.07,235.01,26.95898963]
[1731885253501,27.42204703,235.07,234.99,26.95898963]
[1731885253799,27.42204703,235.07,234.97,26.95898963]
[1731885253800,26.95898963,235.05,234.97,26.95898963]
[1731885254292,20.0,235.04,234.97,26.95898963]
[1731885255172,23.776884,235.05,234.97,31.21468963]
[1731885255475,23.776884,235.05,234.99,26.95898963]
[1731885256076,0.4630574,235.07,235.03,26.95898963]
[1731885257093,0.4630574,235.07,234.99,26.95898963]
[1731885257094,31.67604703,235.07,234.99,26.95898963]
[1731885257471,23.776884,235.06,234.99,26.95898963]
[1731885258011,0.4630574,235.07,235.01,26.95898963]
[1731885258308,0.4630574,235.07,235.03,26.95898963]
[1731885258974,0.4630574,235.07,235.01,26.95898963]
[1731885259174,0.4630574,235.07,235.03,26.95898963]
[1731885260102,27.42204703,235.07,234.99,37.59768963]
[1731885260292,26.95898963,235.04,234.96,4.256]
[1731885260870,4.7171574,235.07,234.99,26.95898963]
[1731885261097,0.4630574,235.07,235.02,26.95898963]
[1731885261295,0.4630574,235.07,234.78,21.9353926]
[1731885261296,26.95898963,235.03,234.91,10.6423]
[1731885261500,26.95898963,235.01,234.94,26.95898963]
[1731885262973,33.54048963,235.03,234.96,26.95898963]
[1731885263177,6.5815,235.03,234.96,26.95898963]
[1731885263483,6.5815,235.03,234.98,26.95898963]
[1731885263690,24.2543,235.06,234.98,26.95898963]
[1731885264287,26.95898963,235.03,234.94,26.95898963]
[1731885264495,31.21378963,235.03,234.95,4.2562]
[1731885264918,31.21378963,235.03,234.94,26.95898963]
[1731885265203,26.95898963,235.01,234.93,14.8976]
[1731885265690,23.776884,235.02,234.94,26.95898963]
[1731885266000,23.776884,235.02,234.9,26.95898963]
[1731885266001,46.95898963,234.99,234.9,26.95898963]
[1731885266215,46.95898963,234.99,234.81,0.1]
[1731885266216,26.95898963,234.91,234.76,10.6491]
[1731885266390,20.0,234.94,234.76,10.6491]
[1731885266391,26.95898963,234.87,234.78,26.95898963]
[1731885266577,26.95898963,234.87,234.79,4.2591]
[1731885267085,26.95898963,234.85,234.78,26.95898963]
[1731885267293,26.95898963,234.85,234.77,4.2593]
[1731885267700,26.95898963,234.85,234.76,37.60808963]
[1731885267885,20.0,234.84,234.76,37.60808963]
[1731885268084,20.0,234.84,234.76,41.86768963]
[1731885268696,20.0,234.84,234.76,37.60808963]
[1731885268906,20.0,234.82,234.74,31.21888963]
[1731885269505,4.2583,234.84,234.76,26.95898963]
[1731885269709,4.2578,234.87,234.8,26.95898963]
[1731885270176,23.776884,234.87,234.8,26.95898963]
[1731885270381,20.0,234.88,234.82,26.95898963]
[1731885270687,4.2572,234.9,234.82,31.21748963]
[1731885270881,23.776884,234.9,234.82,31.21748963]
[1731885271091,43.23068963,234.91,234.82,41.86388963]
[1731885271289,43.23068963,234.91,234.84,26.95898963]
[1731885271290,26.95898963,234.91,234.84,26.95898963]
[1731885271779,23.776884,234.9,234.82,41.86388963]
[1731885273085,20.0,234.9,234.84,26.95898963]
[1731885273408,26.95898963,234.87,234.8,26.95898963]
[1731885273707,20.0,234.88,234.8,26.95898963]
[1731885273708,20.0,234.88,234.8,31.21778963]
[1731885274612,50.73587363,234.89,234.77,10.6485]
[1731885274613,26.95898963,234.85,234.77,10.6485]
[1731885274904,26.95898963,234.83,234.77,10.6485]
[1731885276314,26.95898963,234.83,234.75,16.71796155]
[1731885276315,16.71796155,234.83,234.75,16.71796155]
[1731885276491,43.776884,234.82,234.73,16.71796155]
[1731885276696,16.71796155,234.81,234.73,16.71796155]
[1731885277003,23.776884,234.88,234.79,16.71796155]
[1731885277180,23.29946155,234.93,234.85,16.71796155]
[1731885277379,27.55606155,234.93,234.85,16.71796155]
[1731885278408,10.8381,234.93,234.85,16.71796155]
[1731885278588,27.55606155,234.93,234.85,16.71796155]
[1731885279207,16.71796155,234.95,234.87,16.71796155]
[1731885279699,16.71796155,234.92,234.83,16.71796155]
[1731885279886,16.71796155,234.92,234.85,16.71796155]
[1731885280305,20.97476155,234.92,234.85,16.71796155]
[1731885280488,16.71796155,234.94,234.86,4.2578]
[1731885280692,20.0,234.93,234.87,16.71796155]
[1731885280894,16.71796155,234.94,234.87,16.71796155]
[1731885281393,43.776884,234.95,234.87,16.71796155]
[1731885281894,48.033184,234.95,234.87,16.71796155]
[1731885282507,16.71796155,234.94,234.86,14.9024]
[1731885282946,162.3,234.99,234.83,16.71796155]
[1731885282947,16.71796155,234.92,234.83,16.71796155]
[1731885284202,4.2569,234.91,234.83,20.97616155]
[1731885284588,40.49484555,234.9,234.81,16.71796155]
[1731885284787,16.71796155,234.86,234.78,4.2591]
[1731885285195,16.71796155,234.88,234.79,16.71796155]
[1731885285401,20.0,234.87,234.79,16.71796155]
[1731885286295,20.0,234.87,234.8,4.2589]
[1731885286905,16.71796155,234.88,234.81,16.71796155]
[1731885287109,16.71796155,234.86,234.79,16.71796155]
[1731885287296,16.71796155,234.84,234.76,16.71796155]
[1731885287486,16.71796155,234.86,234.78,16.71796155]
[1731885288298,16.71796155,234.86,234.78,20.97706155]
[1731885288489,16.71796155,234.88,234.78,20.97706155]
[1731885288810,20.0,234.87,234.8,16.71796155]
[1731885288992,16.71796155,234.88,234.8,16.71796155]
[1731885289803,16.71796155,234.88,234.82,16.71796155]
[1731885290446,16.71796155,234.88,234.82,20.97646155]
[1731885290623,16.71796155,234.88,234.82,4.2585]
[1731885291605,4.2573,234.89,234.82,20.97646155]
[1731885292215,16.71796155,234.9,234.82,20.97646155]
[1731885292518,16.71796155,234.88,234.82,4.2585]
[1731885292697,4.2572,234.9,234.82,20.97646155]
[1731885292911,16.71796155,234.88,234.82,20.97646155]
[1731885293613,16.71796155,234.9,234.82,20.97646155]
[1731885294631,20.97516155,234.9,234.82,20.97646155]
[1731885295196,20.97516155,234.9,234.82,4.2585]
[1731885295197,16.71796155,234.88,234.82,4.2585]
[1731885295507,4.2572,234.9,234.79,4.259]
[1731885295508,16.71796155,234.86,234.79,4.259]
[1731885295698,16.71796155,234.86,234.79,14.9068]
[1731885296107,16.71796155,234.88,234.8,16.71796155]
[1731885296709,16.71796155,234.9,234.81,4.2587]
[1731885296926,16.71796155,234.88,234.81,14.9056]
[1731885297428,23.776884,234.93,234.74,0.35098]
[1731885297429,16.71796155,234.86,234.78,16.71796155]
[1731885298431,20.97586155,234.86,234.79,4.2591]
[1731885298924,16.71796155,234.84,234.77,4.2593]
[1731885300008,20.97616155,234.84,234.76,10.6488]
[1731885300212,16.71796155,234.86,234.78,16.71796155]
[1731885300518,16.71796155,234.88,234.8,16.71796155]
[1731885301204,16.71796155,234.86,234.78,16.71796155]
[1731885301401,16.71796155,234.84,234.76,10.6488]
[1731885301600,16.71796155,234.8,234.72,16.71796155]
[1731885302256,36.7793,234.87,234.76,16.71796155]
[1731885302257,16.71796155,234.84,234.76,16.71796155]
[1731885302403,16.71796155,234.86,234.78,16.71796155]
[1731885303306,20.97516155,234.9,234.82,16.71796155]
[1731885304125,20.97516155,234.9,234.82,20.97636155]
[1731885304434,16.71796155,234.96,234.88,16.71796155]
[1731885304732,16.71796155,234.96,234.83,0.12549]
[1731885304733,16.71796155,234.98,234.9,16.71796155]
[1731885305327,16.71796155,234.94,234.86,16.71796155]
[1731885305532,16.71796155,234.96,234.88,16.71796155]
[1731885306114,16.71796155,234.96,234.89,4.2573]
[1731885306641,16.71796155,234.96,234.83,0.25098]
[1731885306642,16.71796155,234.9,234.83,10.6458]
[1731885306812,16.71796155,234.84,234.75,16.81163617]
[1731885307010,16.71796155,234.88,234.79,16.71796155]
[1731885307205,162.3,234.93,234.81,16.71796155]
[1731885307206,16.71796155,234.9,234.81,16.71796155]
[1731885307410,20.0,234.91,234.83,16.71796155]
[1731885307720,16.71796155,234.87,234.79,16.71796155]
[1731885308117,16.71796155,234.87,234.8,4.2589]
[1731885308614,20.97536155,234.89,234.81,16.71796155]
[1731885309134,16.71796155,234.89,234.81,16.71796155]
[1731885309339,16.71796155,234.91,234.81,16.71796155]
[1731885309513,6.1348,235.0,234.78,14.9073]
[1731885309514,23.776884,234.92,234.84,16.71796155]
[1731885309836,20.97386155,234.97,234.88,16.71796155]
[1731885310019,16.71796155,234.97,234.88,16.71796155]
[1731885310335,16.71796155,234.97,234.9,16.71796155]
[1731885310538,6.1348,235.0,234.92,16.71796155]
[1731885310839,16.71796155,234.99,234.92,16.71796155]
[1731885311836,16.71796155,234.99,234.92,20.97466155]
[1731885313038,0.4630574,235.07,234.98,16.71796155]
[1731885313039,21.43511895,235.07,234.98,16.71796155]
[1731885313742,21.43511895,235.07,234.9,21.2853]
[1731885313743,16.71796155,235.0,234.9,16.71796155]
[1731885313945,16.71796155,234.96,234.88,27.36126155]
[1731885314139,16.71796155,234.96,234.88,10.6433]
[1731885314429,16.71796155,235.02,234.94,16.71796155]
[1731885314936,16.71796155,235.02,234.95,4.2562]
[1731885316546,16.71796155,234.98,234.9,20.97486155]
[1731885316715,16.71796155,234.96,234.9,4.2569]
[1731885317222,16.71796155,234.96,234.89,10.6431]
[1731885317436,16.71796155,234.94,234.89,14.9004]
[1731885318029,16.71796155,234.94,234.89,10.6431]
[1731885318340,162.3,235.03,234.89,10.6431]
[1731885318341,16.71796155,234.96,234.89,14.9004]
[1731885318545,16.71796155,235.02,234.94,16.71796155]
[1731885318845,16.71796155,235.04,234.96,16.71796155]
[1731885319422,16.71796155,235.06,234.98,16.71796155]
[1731885320010,16.71796155,235.02,234.93,16.71796155]
[1731885320208,16.71796155,235.0,234.93,16.71796155]
[1731885320740,16.71796155,235.0,234.91,31.61716155]
[1731885320741,16.71796155,234.98,234.91,31.61716155]
[1731885321236,16.71796155,234.98,234.91,14.8992]
[1731885321535,16.71796155,234.98,234.91,10.6423]
[1731885322037,16.71796155,234.96,234.91,10.6423]
[1731885322216,16.71796155,234.94,234.91,10.6423]
[1731885322417,4.2553,235.0,234.81,0.1]
[1731885322418,24.2569,234.91,234.81,27.36456155]
[1731885322735,16.71796155,234.87,234.81,10.6466]
[1731885322923,16.71796155,234.89,234.81,31.62316155]
[1731885323432,16.71796155,234.85,234.77,20.97736155]
[1731885324036,16.71796155,234.9,234.81,16.71796155]
[1731885324257,16.71796155,234.88,234.79,16.71796155]
[1731885324544,16.71796155,234.88,234.81,16.71796155]
[1731885324725,40.49484555,234.9,234.81,16.71796155]
[1731885325137,16.71796155,234.92,234.85,16.71796155]
[1731885325466,16.71796155,234.92,234.83,16.71796155]
[1731885325633,16.71796155,234.92,234.85,16.71796155]
[1731885325831,16.71796155,234.96,234.88,0.12549]
[1731885326050,6.0526,235.02,234.88,0.12549]
[1731885326051,16.71796155,234.98,234.91,16.71796155]
[1731885326349,16.71796155,234.98,234.9,0.12549]
[1731885326551,16.71796155,234.98,234.91,20.97486155]
[1731885327834,16.71796155,234.98,234.91,4.2569]
[1731885328642,16.71796155,234.93,234.85,0.09367462]
[1731885328855,16.71796155,234.89,234.85,0.09367462]
[1731885330059,162.3,234.99,234.87,16.71796155]
[1731885330060,16.71796155,234.95,234.87,16.71796155]
[1731885330358,16.71796155,234.91,234.85,10.73867462]
[1731885330530,16.71796155,234.89,234.85,0.09367462]
[1731885331354,16.71796155,234.91,234.85,0.09367462]
[1731885331557,16.71796155,234.89,234.85,0.09367462]
[1731885331763,16.71796155,234.87,234.85,0.09367462]
[1731885334373,20.97516155,234.9,234.85,0.09367462]
[1731885335966,16.71796155,234.9,234.85,0.09367462]
[1731885336142,6.57695635,235.05,234.89,0.25098]
[1731885336346,22.77056155,235.02,234.94,16.71796155]
[1731885336771,16.9996574,235.07,234.89,0.25098]
[1731885336772,16.71796155,235.06,234.98,16.71796155]
[1731885337267,16.71796155,235.0,234.9,32.08506155]
[1731885337579,16.71796155,234.98,234.9,32.08506155]
[1731885337873,16.71796155,234.96,234.89,10.643]
[1731885338056,16.71796155,234.92,234.85,4.35157462]
[1731885338362,16.71796155,234.96,234.87,16.71796155]
[1731885338565,16.71796155,234.94,234.87,16.71796155]
[1731885338953,16.71796155,234.92,234.85,31.71453617]
[1731885339261,16.71796155,234.92,234.85,10.73867462]
[1731885339571,16.71796155,234.92,234.85,14.99667462]
[1731885340173,20.97476155,234.92,234.85,10.73867462]
[1731885340348,16.71796155,234.88,234.85,0.09367462]
[1731885340546,40.49484555,234.86,234.85,0.09367462]
[1731885340768,16.71796155,234.86,234.85,0.09367462]
[1731885340978,60.49484555,234.86,234.85,0.09367462]
[1731885341644,60.58852017,234.86,234.85,0.09367462]
[1731885342270,64.84632017,234.86,234.85,0.09367462]
[1731885346670,97.07356172,234.86,234.85,0.09367462]
[1731885347386,0.09367462,234.83,234.75,0.09367462]
[1731885347558,16.71796155,234.76,234.75,0.09367462]
[1731885347761,40.49484555,234.76,234.75,0.09367462]
[1731885347993,60.49484555,234.76,234.75,0.09367462]
[1731885348363,64.97361017,234.76,234.75,0.09367462]
[1731885348668,64.97361017,234.76,234.6,10.6562]
[1731885348669,43.87055862,234.75,234.6,10.6562]
[1731885348879,16.71796155,234.66,234.6,10.6562]
[1731885349176,16.71796155,234.66,234.6,14.9187]
[1731885349359,16.71796155,234.68,234.6,31.63666155]
[1731885350891,16.71796155,234.64,234.56,4.2632]
[1731885351187,16.71796155,234.6,234.51,32.06766155]
[1731885351363,4.3611,234.68,234.52,4.2639]
[1731885351364,16.71796155,234.58,234.52,4.2639]
[1731885351569,16.71796155,234.6,234.52,4.2639]
[1731885351875,14.9139,234.68,234.49,16.71796155]
[1731885351876,16.71796155,234.56,234.49,16.71796155]
[1731885352063,16.71796155,234.56,234.47,16.71796155]
[1731885352264,16.71796155,234.54,234.48,4.2647]
[1731885352464,16.71796155,234.56,234.49,16.71796155]
[1731885353156,162.3,234.63,234.48,10.6618]
[1731885353157,16.71796155,234.54,234.48,10.6618]
[1731885353860,16.71796155,234.54,234.46,4.265]
[1731885354287,16.71796155,234.54,234.43,10.6639]
[1731885354288,16.71796155,234.48,234.43,10.6639]
[1731885354470,16.71796155,234.46,234.43,10.6639]
[1731885354689,16.71796155,234.46,234.39,16.71796155]
[1731885354871,16.71796155,234.46,234.37,27.38456155]
[1731885355066,16.71796155,234.46,234.39,16.71796155]
[1731885355280,16.71796155,234.48,234.39,16.71796155]
[1731885355802,16.71796155,234.48,234.41,16.71796155]
[1731885356316,16.71796155,234.5,234.43,16.71796155]
[1731885356466,16.71796155,234.52,234.43,16.71796155]
[1731885356666,16.71796155,234.52,234.45,16.71796155]
[1731885357595,23.29966155,234.56,234.47,16.71796155]
[1731885357894,16.71796155,234.58,234.49,16.71796155]
[1731885358090,16.71796155,234.6,234.51,16.71796155]
[1731885358504,6.5817,234.61,234.53,16.71796155]
[1731885358681,16.71796155,234.62,234.53,16.71796155]
[1731885359179,16.71796155,234.6,234.47,0.12549]
[1731885359382,16.71796155,234.59,234.52,16.71796155]
[1731885359585,16.71796155,234.61,234.53,4.2638]
[1731885359785,16.71796155,234.63,234.56,16.71796155]
[1731885360099,16.71796155,234.63,234.54,16.71796155]
[1731885360572,4.2617,234.65,234.58,16.71796155]
[1731885360573,16.71796155,234.65,234.58,16.71796155]
[1731885360771,6.5817,234.67,234.58,16.71796155]
[1731885360772,16.71796155,234.67,234.58,16.71796155]
[1731885360990,16.71796155,234.67,234.6,16.71796155]
[1731885361288,4.2612,234.68,234.6,16.71796155]
[1731885361289,16.71796155,234.68,234.6,16.71796155]
[1731885361801,16.71796155,234.68,234.6,20.98036155]
[1731885361989,16.71796155,234.72,234.64,16.71796155]
[1731885362194,16.71796155,234.76,234.68,16.71796155]
[1731885362402,20.97766155,234.76,234.68,16.71796155]
[1731885362582,16.71796155,234.74,234.66,16.71796155]
[1731885363094,16.71796155,234.78,234.68,16.71796155]
[1731885363302,16.71796155,234.72,234.64,16.71796155]
[1731885363603,16.71796155,234.66,234.6,10.6564]
[1731885363812,16.71796155,234.64,234.6,10.6564]
[1731885364011,4.2605,234.71,234.54,14.9223]
[1731885364012,16.71796155,234.62,234.54,14.9223]
[1731885364178,192.9517,234.71,234.54,14.9223]
[1731885364179,16.71796155,234.66,234.54,14.9223]
[1731885364494,16.71796155,234.66,234.58,16.71796155]
[1731885364884,16.71796155,234.64,234.54,31.64026155]
[1731885365701,16.71796155,234.64,234.54,14.9223]
[1731885365873,16.71796155,234.64,234.56,16.71796155]
[1731885366073,16.71796155,234.67,234.58,16.71796155]
[1731885366297,179.01796155,234.75,234.66,16.71796155]
[1731885366487,20.97786155,234.75,234.66,16.71796155]
[1731885366982,16.71796155,234.77,234.68,16.71796155]
[1731885367308,16.71796155,234.71,234.63,16.71796155]
[1731885367601,16.71796155,234.69,234.61,16.71796155]
[1731885367799,16.71796155,234.69,234.61,20.98026155]
[1731885368099,16.71796155,234.73,234.65,16.71796155]
[1731885368307,4.2597,234.76,234.61,4.2623]
[1731885368308,16.71796155,234.67,234.61,10.6559]
[1731885368692,16.71796155,234.67,234.61,14.9182]